Workbook

Sheet 综合成绩
A1: 太和县国有资产投资控股集团有限公司公开招聘笔试成绩、结构化面试成绩、综合成绩汇总表
I2: 2022-12-06
A3: 序号 | B3: 姓名 | C3: 身份证号码 | D3: 报考岗位 | E3: 资质证书 | F3: 笔试准考证 | G3: 笔试 成绩 | H3: 面试 成绩 | I3: 加分 | J3: 综合分 | K3: 排名 | L3: 备注
A5: 1 | B5: 刘*孺 | C5: 341222********0289 | D5: 产业服务 | F5: ="20221070812" -> 20221070812 | G5: 60.00 | H5: 72.33 | J5: =G5*0.5+H5*0.5+I5 -> 66.17 | K5: 1
A6: 2 | B6: 王* | C6: 341282********0328 | D6: 产业规划 | F6: ="20221060807" -> 20221060807 | G6: 63.00 | H6: 78.33 | J6: =G6*0.5+H6*0.5+I6 -> 70.67 | K6: 1
A7: 3 | B7: 薛* | C7: 341222********0285 | D7: 产业规划 | F7: ="20221060808" -> 20221060808 | G7: 66.00 | H7: 73.67 | J7: 69.84 | K7: 2
A8: 4 | B8: 肖*飞 | C8: 341282********2836 | D8: 党务专员 | E8: 党员证明 | F8: ="20221010130" -> 20221010130 | G8: 74.00 | H8: 75.00 | I8: 1.00 | J8: =G8*0.5+H8*0.5+I8 -> 75.50 | K8: 1
A9: 5 | B9: 张*宇 | C9: 341222********2959 | D9: 党务专员 | E9: 党员证明 | F9: ="20221010114" -> 20221010114 | G9: 74.00 | H9: 74.33 | I9: 1.00 | J9: =G9*0.5+H9*0.5+I9 -> 75.17 | K9: 2
A10: 6 | B10: 陈* | C10: 341222********6363 | D10: 党务专员 | E10: 党员证明 | F10: ="20221010125" -> 20221010125 | G10: 70.00 | H10: 77.00 | I10: 1.00 | J10: =G10*0.5+H10*0.5+I10 -> 74.50 | K10: 3
A11: 7 | B11: 方*倩 | C11: 341222********2423 | D11: 党务专员 | F11: ="20221010121" -> 20221010121 | G11: 70.00 | H11: 74.67 | J11: =G11*0.5+H11*0.5+I11 -> 72.34 | K11: 4
A12: 8 | B12: 李*楠 | C12: 341222********0085 | D12: 法务管理 | E12: 法律职业资格证书 | F12: ="20221021032" -> 20221021032 | G12: 72.00 | H12: 74.67 | I12: 2.00 | J12: 75.34 | K12: 1
A13: 9 | B13: 王*丹 | C13: 341222********6924 | D13: 基金管理 | F13: ="20221101008" -> 20221101008 | G13: 66.00 | H13: 74.33 | I13: 2.00 | J13: 72.17 | K13: 1 | L13: 211学校
A14: 10 | B14: 宋*民 | C14: 341222********4193 | D14: 销售管理 | F14: ="20221131012" -> 20221131012 | G14: 72.00 | H14: 74.67 | J14: 73.34 | K14: 1
A15: 11 | B15: 刘*岩 | C15: 342123********0774 | D15: 行政管理 | F15: ="20221030215" -> 20221030215 | G15: 78.00 | H15: 74.67 | J15: 76.34 | K15: 1
A16: 12 | B16: 张*淼 | C16: 341222********8478 | D16: 行政管理 | F16: ="20221030219" -> 20221030219 | G16: 76.00 | H16: 75.33 | J16: 75.67 | K16: 2
A17: 13 | B17: 陈*文 | C17: 341222********6053 | D17: 行政管理 | F17: ="20221030307" -> 20221030307 | G17: 74.00 | H17: 75.00 | J17: 74.50 | K17: 3
A18: 14 | B18: 裴*城 | C18: 341222********5297 | D18: 行政管理 | F18: ="20221030210" -> 20221030210 | G18: 69.00 | H18: 77.67 | J18: 73.34 | K18: 4
A19: 15 | B19: 陶*社 | C19: 341222********5557 | D19: 行政管理 | F19: ="20221030314" -> 20221030314 | G19: 71.00 | H19: 75.33 | J19: 73.17 | K19: 5
A20: 16 | B20: 张* | C20: 341204********103X | D20: 行政管理 | F20: ="20221030402" -> 20221030402 | G20: 69.00 | H20: 76.33 | J20: 72.67 | K20: 6
A21: 17 | B21: 程*洁 | C21: 341621********3914 | D21: 行政管理 | F21: ="20221030208" -> 20221030208 | G21: 69.00 | H21: 74.33 | J21: 71.67 | K21: 7
A22: 18 | B22: 刘* | C22: 341222********2955 | D22: 行政管理 | F22: ="20221030205" -> 20221030205 | G22: 72.00 | H22: 71.00 | J22: 71.50 | K22: 8
A23: 19 | B23: 马*楠 | C23: 341282********7321 | D23: 行政管理 | F23: ="20221030319" -> 20221030319 | G23: 71.00 | H23: 71.67 | J23: 71.34 | K23: 9
A24: 20 | B24: 刘*坤 | C24: 341281********4650 | D24: 行政管理 | F24: ="20221030311" -> 20221030311 | G24: 75.00 | H24: 63.67 | J24: 69.34 | K24: 10
A25: 21 | B25: 吴*雪 | C25: 341222********3581 | D25: 资产运营管理 | F25: ="20221080821" -> 20221080821 | G25: 69.00 | H25: 75.67 | J25: 72.34 | K25: 1
A26: 22 | B26: 孙*雨 | C26: 341204********021X | D26: 资产运营管理 | F26: ="20221080825" -> 20221080825 | G26: 66.00 | H26: 76.00 | J26: 71.00 | K26: 2
A27: 23 | B27: 梁*雪 | C27: 341222********3267 | D27: 资产运营管理 | F27: ="20221080816" -> 20221080816 | G27: 67.00 | H27: 74.67 | J27: 70.84 | K27: 3
A28: 24 | B28: 张*杭 | C28: 341222********3881 | D28: 资产运营管理 | F28: ="20221080823" -> 20221080823 | G28: 62.00 | H28: 74.00 | I28: 2.00 | J28: 70.00 | K28: 4 | L28: 985学校
A29: 25 | B29: 林*莉 | C29: 341222********564X | D29: 资产运营管理 | F29: ="20221080828" -> 20221080828 | G29: 62.00 | H29: 75.67 | J29: 68.84 | K29: 5
A30: 26 | B30: 段*光 | C30: 341282********1417 | D30: 资产运营管理 | F30: ="20221080901" -> 20221080901 | G30: 63.00 | H30: 73.67 | J30: 68.34 | K30: 6
A31: 27 | B31: 靳*东 | C31: 341281********3710 | D31: 资产运营管理 | F31: ="20221080826" -> 20221080826 | G31: 64.00 | H31: 72.67 | J31: 68.34 | K31: 7
A32: 28 | B32: 陶* | C32: 341204********1465 | D32: 财务出纳 | E32: 中级会计证 | F32: ="20221040720" -> 20221040720 | G32: 76.00 | H32: 74.00 | I32: 1.00 | J32: 76.00 | K32: 1
A33: 29 | B33: 李*琪 | C33: 341222********0762 | D33: 财务出纳 | F33: ="20221040611" -> 20221040611 | G33: 76.00 | H33: 74.67 | J33: 75.34 | K33: 2
A34: 30 | B34: 马*林 | C34: 341226********0275 | D34: 财务出纳 | F34: ="20221040627" -> 20221040627 | G34: 73.00 | H34: 75.67 | J34: 74.34 | K34: 3
A35: 31 | B35: 孙*洁 | C35: 341204********1503 | D35: 财务出纳 | F35: ="20221040613" -> 20221040613 | G35: 72.00 | H35: 76.33 | J35: 74.17 | K35: 4
A36: 32 | B36: 邱*芳 | C36: 341221********2105 | D36: 财务出纳 | F36: ="20221040614" -> 20221040614 | G36: 73.00 | H36: 75.00 | J36: 74.00 | K36: 5
A37: 33 | B37: 张*晴 | C37: 341282********7928 | D37: 财务出纳 | F37: ="20221040625" -> 20221040625 | G37: 72.00 | H37: 75.67 | J37: 73.84 | K37: 6
A38: 34 | B38: 李*玉 | C38: 341222********0525 | D38: 财务出纳 | F38: ="20221040701" -> 20221040701 | G38: 70.00 | H38: 75.33 | J38: 72.67 | K38: 7
A39: 35 | B39: 刘* | C39: 341222********0347 | D39: 财务出纳 | F39: ="20221040522" -> 20221040522 | G39: 67.00 | H39: 77.33 | J39: 72.17 | K39: 8
A40: 36 | B40: 杨* | C40: 341222********0283 | D40: 财务出纳 | E40: 中级会计证 | F40: ="20221040617" -> 20221040617 | G40: 67.00 | H40: 75.00 | I40: 1.00 | J40: 72.00 | K40: 9
A41: 37 | B41: 赵*晴 | C41: 341225********1528 | D41: 财务出纳 | F41: ="20221040712" -> 20221040712 | G41: 68.00 | H41: 74.00 | J41: 71.00 | K41: 10
A42: 38 | B42: 董* | C42: 341222********3562 | D42: 财务出纳 | F42: ="20221040618" -> 20221040618 | G42: 68.00 | H42: 72.33 | J42: 70.17 | K42: 11
A43: 39 | B43: 郭* | C43: 341222********9591 | D43: 财务出纳 | F43: ="20221040628" -> 20221040628 | G43: 70.00 | H43: 68.67 | J43: 69.34 | K43: 12
A44: 40 | B44: 董* | C44: 341222********0023 | D44: 财务出纳 | F44: ="20221040615" -> 20221040615 | G44: 67.00 | H44: 71.33 | J44: 69.17 | K44: 13
A45: 41 | B45: 张*言 | C45: 341222********3889 | D45: 财务出纳 | F45: ="20221040603" -> 20221040603 | G45: 67.00 | H45: 70.00 | J45: 68.50 | K45: 14
A46: 42 | B46: 刘* | C46: 341204********2644 | D46: 财务出纳 | F46: ="20221040623" -> 20221040623 | G46: 73.00 | H46: 弃考
A47: 43 | B47: 赵*文 | C47: 341281********2816 | D47: 财务出纳 | F47: ="20221040716" -> 20221040716 | G47: 69.00 | H47: 弃考
A48: 44 | B48: 刘*言 | C48: 341222********184X | D48: 财务会计 | E48: 中级会计证 | F48: ="20221050728" -> 20221050728 | G48: 74.00 | H48: 75.33 | I48: 1.00 | J48: =G48*0.5+H48*0.5+I48 -> 75.67 | K48: 1
A49: 45 | B49: 孙* | C49: 341222********0272 | D49: 财务会计 | E49: 中级会计证 | F49: ="20221050724" -> 20221050724 | G49: 64.00 | H49: 80.33 | I49: 1.00 | J49: 73.17 | K49: 2
A50: 46 | B50: 王*阳 | C50: 341222********2421 | D50: 财务会计 | E50: 中级会计证 | F50: ="20221050726" -> 20221050726 | G50: 67.00 | H50: 77.00 | I50: 1.00 | J50: 73.00 | K50: 3
A51: 47 | B51: 牛*静 | C51: 341203********0322 | D51: 财务会计 | E51: 中级会计证 | F51: ="20221050727" -> 20221050727 | G51: 67.00 | H51: 72.67 | I51: 1.00 | J51: 70.84 | K51: 4
A52: 48 | B52: 邵*梅 | C52: 341222********0546 | D52: 财务会计 | E52: 中级会计证 | F52: ="20221050729" -> 20221050729 | G52: 66.00 | H52: 72.67 | I52: 1.00 | J52: 70.34 | K52: 5
A53: 49 | B53: 李*雨 | C53: 341222********1446 | D53: 财务会计 | E53: 中级会计证 | F53: ="20221050730" -> 20221050730 | G53: 60.00 | H53: 73.33 | I53: 1.00 | J53: 67.67 | K53: 6
A54: 50 | B54: 张* | C54: 341222********0524 | D54: 财务会计 | E54: 中级会计证 | F54: ="20221050725" -> 20221050725 | G54: 64.00 | H54: 61.00 | I54: 1.00 | J54: 63.50 | K54: 7
A55: 51 | B55: 韦* | C55: 341203********1613 | D55: 融资管理 | F55: ="20221090911" -> 20221090911 | G55: 76.00 | H55: 75.00 | J55: =G55*0.5+H55*0.5+I55 -> 75.50 | K55: 1
A56: 52 | B56: 刘* | C56: 341602********9483 | D56: 融资管理 | F56: ="20221090926" -> 20221090926 | G56: 69.00 | H56: 75.00 | J56: =G56*0.5+H56*0.5+I56 -> 72.00 | K56: 2
A57: 53 | B57: 张* | C57: 341222********0277 | D57: 融资管理 | F57: ="20221090922" -> 20221090922 | G57: 69.00 | H57: 74.67 | J57: =G57*0.5+H57*0.5+I57 -> 71.84 | K57: 3
A58: 54 | B58: 李*娇 | C58: 341222********0049 | D58: 融资管理 | F58: ="20221090910" -> 20221090910 | G58: 67.00 | H58: 76.00 | J58: =G58*0.5+H58*0.5+I58 -> 71.50 | K58: 4
A59: 55 | B59: 张* | C59: 341282********6817 | D59: 融资管理 | F59: ="20221091002" -> 20221091002 | G59: 66.00 | H59: 74.00 | J59: =G59*0.5+H59*0.5+I59 -> 70.00 | K59: 5
A60: 56 | B60: 陈* | C60: 341222********3270 | D60: 融资管理 | F60: ="20221090924" -> 20221090924 | G60: 69.00 | H60: 弃考
A61: 57 | B61: 肖*言 | C61: 341282********2820 | D61: 融资管理 | F61: ="20221090930" -> 20221090930 | G61: 67.00 | H61: 弃考
A62: 58 | B62: 魏*春 | C62: 341221********3578 | D62: 融资管理 | F62: ="20221090915" -> 20221090915 | G62: 70.00 | H62: 弃考
A63: 59 | B63: 郭*号 | C63: 341221********7559 | D63: 融资管理 | F63: ="20221091003" -> 20221091003 | G63: 72.00 | H63: 弃考
A64: 60 | B64: 李* | C64: 341204********0417 | D64: 按揭管理 | F64: ="20221141018" -> 20221141018 | G64: 63.00 | H64: 弃考
A65: 61 | B65: 刘*然 | C65: 341222********279X | D65: 工程项目管理 | E65: 一级建造师 | F65: ="20221171406" -> 20221171406 | G65: 71.00 | H65: 77.00 | I65: 2.00 | J65: =G65*0.5+H65*0.5+I65 -> 76.00 | K65: 1
A66: 62 | B66: 袁* | C66: 341202********1714 | D66: 工程项目管理 | E66: 一级建造师 | F66: ="20221171308" -> 20221171308 | G66: 68.00 | H66: 76.00 | I66: 2.00 | J66: 74.00 | K66: 2
A67: 63 | B67: 闫* | C67: 341222********7759 | D67: 工程项目管理 | E67: 二级建造师 | F67: ="20221171407" -> 20221171407 | G67: 71.00 | H67: 74.67 | I67: 1.00 | J67: 73.84 | K67: 3
A68: 64 | B68: 耿*业 | C68: 341222********1817 | D68: 工程项目管理 | E68: 一级建造师 | F68: ="20221171315" -> 20221171315 | G68: 69.00 | H68: 73.67 | I68: 2.00 | J68: 73.34 | K68: 4
A69: 65 | B69: 陈* | C69: 341225********3110 | D69: 工程项目管理 | E69: 一级建造师 | F69: ="20221171422" -> 20221171422 | G69: 68.00 | H69: 74.33 | I69: 2.00 | J69: 73.17 | K69: 5
A70: 66 | B70: 赵* | C70: 341222********6812 | D70: 工程项目管理 | E70: 二级建造师 | F70: ="20221171325" -> 20221171325 | G70: 67.00 | H70: 75.00 | I70: 2.00 | J70: 73.00 | K70: 6 | L70: 211学校
A71: 67 | B71: 任*旋 | C71: 341222********2430 | D71: 工程造价管理 | F71: ="20221161304" -> 20221161304 | G71: 73.00 | H71: 75.00 | I71: 2.00 | J71: 76.00 | K71: 1 | L71: 211学校
A72: 68 | B72: 许*龙 | C72: 341204********0811 | D72: 工程造价管理 | E72: 二级建造师 | F72: ="20221161306" -> 20221161306 | G72: 72.00 | H72: 74.00 | I72: 1.00 | J72: 74.00 | K72: 2
A73: 69 | B73: 徐* | C73: 341222********3293 | D73: 工程造价管理 | E73: 二级建造师 | F73: ="20221161218" -> 20221161218 | G73: 67.00 | H73: 74.00 | I73: 1.00 | J73: 71.50 | K73: 3
A74: 70 | B74: 刘* | C74: 341222********0753 | D74: 工程造价管理 | E74: 二级建造师 | F74: ="20221161219" -> 20221161219 | G74: 64.00 | H74: 73.33 | I74: 1.00 | J74: 69.67 | K74: 4
A75: 71 | B75: 刘*羽 | C75: 341204********1616 | D75: 工程造价管理 | F75: ="20221161301" -> 20221161301 | G75: 62.00 | H75: 弃考
A76: 72 | B76: 刘*群 | C76: 342401********1523 | D76: 工程资料员 | E76: 二级建造师 | F76: ="20221181425" -> 20221181425 | G76: 67.00 | H76: 73.67 | I76: 1.00 | J76: =G76*0.5+H76*0.5+I76 -> 71.34 | K76: 1
A77: 73 | B77: 冯* | C77: 340621********5245 | D77: 工程资料员 | E77: 二级建造师 | F77: ="20221181503" -> 20221181503 | G77: 62.00 | H77: 75.00 | I77: 1.00 | J77: 69.50 | K77: 2
A78: 74 | B78: 魏*松 | C78: 341222********1436 | D78: 工程资料员 | F78: ="20221181424" -> 20221181424 | G78: 60.00 | H78: 75.00 | J78: 67.50 | K78: 3
A79: 75 | B79: 段*军 | C79: 341282********2110 | D79: 土建工程师 | E79: 一级建造师 | F79: ="20221111110" -> 20221111110 | G79: 78.00 | H79: 74.33 | I79: 2.00 | J79: =G79*0.5+H79*0.5+I79 -> 78.17 | K79: 1
A80: 76 | B80: 孙*飞 | C80: 152122********093X | D80: 土建工程师 | E80: 一级建造师 | F80: ="20221111112" -> 20221111112 | G80: 71.00 | H80: 75.67 | I80: 2.00 | J80: =G80*0.5+H80*0.5+I80 -> 75.34 | K80: 2
A81: 77 | B81: 张* | C81: 341222********4172 | D81: 土建工程师 | E81: 一级建造师 | F81: ="20221111106" -> 20221111106 | G81: 69.00 | H81: 76.00 | I81: 2.00 | J81: =G81*0.5+H81*0.5+I81 -> 74.50 | K81: 3
A82: 78 | B82: 刘*龙 | C82: 342123********077X | D82: 土建工程师 | E82: 二级建造师 | F82: ="20221111118" -> 20221111118 | G82: 71.00 | H82: 73.67 | I82: 1.00 | J82: =G82*0.5+H82*0.5+I82 -> 73.34 | K82: 4
A83: 79 | B83: 魏*垒 | C83: 341222********6530 | D83: 土建工程师 | E83: 一级建造师 | F83: ="20221111119" -> 20221111119 | G83: 68.00 | H83: 74.67 | I83: 2.00 | J83: =G83*0.5+H83*0.5+I83 -> 73.34 | K83: 4
A84: 80 | B84: 王*昊 | C84: 341222********8990 | D84: 土建工程师 | F84: ="20221111121" -> 20221111121 | G84: 69.00 | H84: 弃考
A85: 81 | B85: 彭*付 | C85: 340824********5417 | D85: 园林管理 | F85: ="20221211531" -> 20221211531 | G85: 63.00 | H85: 76.67 | J85: =G85*0.5+H85*0.5+I85 -> 69.84 | K85: 1
A86: 82 | B86: 陈* | C86: 341222********4731 | D86: 园林管理 | E86: 一级建造师 | F86: ="20221201512" -> 20221201512 | G86: 61.00 | H86: 69.00 | I86: 2.00 | J86: 67.00 | K86: 2
A87: 83 | B87: 訾*莲 | C87: 341203********1546 | D87: 园林设计 | F87: ="20221211526" -> 20221211526 | G87: 68.00 | H87: 77.33 | J87: 72.67 | K87: 1 | L87: 笔试专业知识41分
A88: 84 | B88: 张*伟 | C88: 341222********1906 | D88: 园林设计 | F88: ="20221211527" -> 20221211527 | G88: 68.00 | H88: 77.33 | J88: 72.67 | K88: 2 | L88: 笔试专业知识33分
A89: 85 | B89: 刘* | C89: 341222********9410 | D89: 园林设计 | F89: ="20221211523" -> 20221211523 | G89: 63.00 | H89: 79.17 | J89: 71.09 | K89: 3
A90: 86 | B90: 肖*琼 | C90: 341222********028X | D90: 园林设计 | F90: ="20221211516" -> 20221211516 | G90: 63.00 | H90: 78.33 | J90: 70.67 | K90: 4
A91: 87 | B91: 付*玉 | C91: 341222********7203 | D91: 招投标代理 | F91: ="20221151025" -> 20221151025 | G91: 64.00 | H91: 80.67 | J91: 72.34 | K91: 1
A92: 88 | B92: 王*国 | C92: 341203********2516 | D92: 招投标代理 | E92: 二级建造师 | F92: ="20221151021" -> 20221151021 | G92: 64.00 | H92: 77.00 | I92: 1.00 | J92: 71.50 | K92: 2
A93: 89 | B93: 范*丽 | C93: 341203********4422 | D93: 招投标代理 | F93: ="20221151027" -> 20221151027 | G93: 62.00 | H93: 75.00 | J93: 68.50 | K93: 3
A94: 90 | B94: 刘*冉 | C94: 341223********0321 | D94: 招投标代理 | F94: ="20221151028" -> 20221151028 | G94: 62.00 | H94: 75.00 | J94: 68.50 | K94: 3
